Cogmind - Beta 13 @@@ ROGUE MODE // 2024.04.02 @ 17:05:42 Player: sportsracer48 Result: Self-destructed Performance ------------- Evolutions (2) 1000 Regions Visited (4) 800 Robots Destroyed (43) 215 Value Destroyed (1019) 1019 Prototype IDs (0) 0 Alien Tech Used (0) 0 Bonus (90) 90 TOTAL SCORE: 3124 Bonus ------- High Alert Combat Kills 90 Cogmind --------- Core Integrity 461/550 Matter 139/300 Energy 140/140 System Corruption 2% Temperature Cool (0) Movement Core (100) Ox1 Location -8/Materials Parts ------- > --- POWER (1) -------- Light Deuterium Engine > --- PROPULSION (4) --- (None) > --- UTILITY (4) ------ Core Analyzer Core Analyzer Core Analyzer > --- WEAPON (2) ------- (None) > --- INVENTORY (5) ---- Light Ion Engine Improved Heat Sink Field Recycling Unit (15) Peak State ------------ > --- POWER ------------ Light Deuterium Engine > --- PROPULSION ------- Flight Unit Flight Unit Flight Unit Flight Unit > --- UTILITY ---------- Core Analyzer Core Analyzer Core Analyzer Core Analyzer > --- WEAPON ----------- Rocket Launcher Improved Grenade Launcher > --- INVENTORY -------- Light Ion Engine Flight Unit Improved Heat Sink Field Recycling Unit [Rating: 28] Favorites ----------- Power Light Ion Engine Engine Light Ion Engine Power Core Light Nuclear Core Propulsion Flight Unit Leg Aluminum Leg Flight Unit Flight Unit Utility Core Analyzer Device Seismic Detector Storage Small Storage Unit Processor Core Analyzer Weapon Assault Rifle Ballistic Gun Assault Rifle Launcher Grenade Launcher Special Weapon Mining Laser Build | -11 -10 -10 -9 -8 ------- Run | Yrd Mat Min Mat Mat Slots Evolved 4 | . . . 2 2 Power . | . . . . . Propulsion 2 | . . . 1 1 Utility 2 | . . . 1 1 Weapon . | . . . . . Parts Attached 52 | 9 2 18 11 12 Power 9 | 1 . 3 2 3 Engine 7 | 1 . 3 1 2 Core 2 | . . . 1 1 Reactor . | . . . . . Propulsion 18 | 2 . 10 3 3 Treads . | . . . . . Leg 6 | 2 . 4 . . Wheel . | . . . . . Hover . | . . . . . Flight 12 | . . 6 3 3 Utility 13 | 4 . 1 4 4 Device 8 | 3 . 1 4 . Storage 1 | 1 . . . . Processor 4 | . . . . 4 Hackware . | . . . . . Protection . | . . . . . Artifact . | . . . . . Weapon 12 | 2 2 4 2 2 Energy Gun . | . . . . . Energy Cannon . | . . . . . Ballistic Gun 4 | 2 . 1 1 . Ballistic Cannon . | . . . . . Launcher 5 | . 1 1 1 2 Special Weapon 3 | . 1 2 . . Impact Weapon . | . . . . . Slashing Weapon . | . . . . . Piercing Weapon . | . . . . . Special Melee Weapon . | . . . . . Unidentified Prototypes . | . . . . . Parts Lost 20 | . . 9 1 10 Power 3 | . . 2 . 1 Propulsion 10 | . . 3 1 6 Utility 2 | . . 1 . 1 Weapon 5 | . . 3 . 2 Highest Loss Streak 8 | . . 4 1 8 To Critical Strikes . | . . . . . Average Slot Usage (%) 73 | . 100 57 60 93 Engine 8 | . 14 8 6 5 Core 1 | . . . 4 3 Leg 10 | . 28 12 . . Flight 19 | . . 14 32 35 Device 6 | . 14 6 5 . Storage 2 | . 14 . . . Processor 6 | . . . . 30 Ballistic Gun 5 | . 21 1 4 . Launcher 8 | . 3 7 8 17 Special Weapon 2 | . 3 4 . . Naked Turns 2 | . . 2 . . Heaviest Build 15 | 15 15 15 11 15 Greatest Support 25 | 20 20 25 12 16 Greatest Overweight (x) . | . . . . . Average Overweight (x) . | . . . . . Largest Inventory Capacity 8 | 8 8 8 5 5 Average Capacity 5 | 5 8 5 5 5 Most Carried 8 | 5 8 8 5 4 Average Carried 4 | 2 7 4 4 3 Final Capacity 8 | 8 8 5 5 5 Final Carried 8 | 5 8 5 5 3 Class Distribution -------------------- 48% | Mutant 33% | Scavenger-Mutant 17% | Scavenger-Sprinter Dominant Class ---------------- Mutant | -10/Materials Mutant | -10/Mines Scavenger-Mutant | -9/Materials Scavenger-Sprinter | -8/Materials Resources | -11 -10 -10 -9 -8 ----------- Run | Yrd Mat Min Mat Mat Matter Collected 1067 | 383 23 328 100 233 Remotely 153 | 153 . . . . Salvage Created 1102 | 214 . 213 96 579 Parts 85 | 19 . 16 16 34 Haulers Intercepted . | . . . . . Recyclers Shooed . | . . . . . Parts Field Recycled 1 | . . . 1 . Retrieved Matter 15 | . . . 15 . Parts Self-Destructed . | . . . . . Prevented . | . . . . . Kills | -11 -10 -10 -9 -8 ------- Run | Yrd Mat Min Mat Mat Combat Hostiles Destroyed 38 | . . 16 7 15 Melee 1 | . . 1 . . Guns 2 | . . 2 . . AOE 35 | . . 13 7 15 Classes Destroyed 8 | 3 . 3 . 2 Worker 4 | 2 . . . 2 Tunneler 5 | 5 . . . . Recycler 4 | 1 . 1 . 2 Swarmer 12 | . . 5 4 3 Grunt 14 | . . 3 3 8 Sentry 3 | . . . . 3 Hunter 1 | . . . . 1 Assembled 8 | . . 8 . . Best Kill Streak 10 | 5 . 10 4 6 Combat Bots Only 9 | . . 9 4 5 Max Kills in Single Turn 3 | 1 . 2 3 3 Gunslinging . | . . . . . Exploded 3 | . . 2 3 3 Melee 1 | . . 1 . . Uniques/NPCs Destroyed . | . . . . . Combat | -11 -10 -10 -9 -8 -------- Run | Yrd Mat Min Mat Mat Hostile Shots Fired 87 | . . 47 14 26 Missed 32 | . . 18 4 10 Damage Taken 1039 | . . 554 138 347 Core 311 | . . 163 59 89 Absorbed by Shields . | . . . . . Core Remaining (%) 73 | 100 . 34 85 . Volleys Fired 65 | 16 2 25 9 13 Largest 2 | 2 2 1 2 2 Hottest 100 | 40 40 100 53 69 Shots Fired 93 | 31 4 25 11 22 Gun 48 | 31 4 7 6 . Cannon . | . . . . . Launcher 43 | . . 16 5 22 Special 2 | . . 2 . . Kinetic 48 | 31 4 7 6 . Thermal 2 | . . 2 . . Explosive 43 | . . 16 5 22 Electromagnetic . | . . . . . Robot Hit Streak 9 | 9 . 3 3 7 Robot Miss Streak 5 | 1 4 5 2 1 Penetration Max . | . . . . . Secondary Targets . | . . . . . Shots Hit Robots 52 | 21 . 13 5 13 Core Hits 83 | 9 . 22 15 37 Critical Kills . | . . . . . Critical Parts Destroyed . | . . . . . Critical Strikes . | . . . . . Melee Attacks . | . . . . . Impact . | . . . . . Slashing . | . . . . . Piercing . | . . . . . Sneak Attacks . | . . . . . Combat Hostiles . | . . . . . Follow-up Attacks . | . . . . . Damage Inflicted 2626 | 275 . 818 372 1161 Guns 370 | 275 . 60 35 . Cannons . | . . . . . Explosions 2226 | . . 729 337 1160 Melee . | . . . . . Ramming 6 | . . 5 . 1 Kinetic 370 | 275 . 60 35 . Thermal 24 | . . 24 . . Explosive 2226 | . . 729 337 1160 Electromagnetic . | . . . . . Impact . | . . . . . Slashing . | . . . . . Piercing . | . . . . . Highest Corruption 7 | . . 7 . 2 Average Corruption 6 | . . 6 . 2 Corruption Purged . | . . . . . Corruption Blocked . | . . . . . Effects 4 | . . 4 . . Message Errors 3 | . . 3 . . Heat Flow Errors 1 | . . 1 . . Overload Shots . | . . . . . Overflow Damage 40 | . . 36 . 4 Projectiles . | . . . . . Explosions 40 | . . 36 . 4 Melee . | . . . . . Knockbacks . | . . . . . Impact . | . . . . . Kinetic . | . . . . . Secondary . | . . . . . Self-Inflicted Damage 245 | . . 161 44 40 Shots 10 | . . 7 1 2 Rammed 1 | . . . . 1 Targets Rammed 4 | . . 3 . 1 Kicked 3 | . . 3 . . Crushed . | . . . . . Highest Temperature 207 | . . 207 6 21 Average Temperature 24 | . . 57 3 6 Received Heat Transfer 128 | . . 44 21 63 Siege Activations . | . . . . . Robots Corrupted . | . . . . . Combat Hostiles . | . . . . . Parts Fried . | . . . . . Impact Corruptions . | . . . . . Robots Melted . | . . . . . Combat Hostiles . | . . . . . Parts Melted 1 | . . 1 . . Heat Transferred 50 | . . 50 . . Parts Sabotaged . | . . . . . Parts Stolen . | . . . . . Parts Stripped . | . . . . . Power Chain Reactions . | . . . . . Alert | -11 -10 -10 -9 -8 ------- Run | Yrd Mat Min Mat Mat Peak Influence 667 | 40 42 321 231 667 Initial 97 | . 26 15 28 97 Average 154 | 19 28 173 155 324 Maximum Alert Level 2 | . . 1 1 2 Low Security (%) 62 | 100 100 58 41 23 Level 1 32 | . . 41 58 49 Level 2 5 | . . . . 27 Level 3 . | . . . . . Level 4 . | . . . . . Level 5 . | . . . . . High Security . | . . . . . Max Security . | . . . . . Squads Dispatched 10 | . 2 . 1 7 Investigation 1 | . . . . 1 Extermination . | . . . . . Reinforcement 7 | . 2 . 1 4 Assault . | . . . . . Garrison 2 | . . . . 2 Intercept . | . . . . . Searches Triggered . | . . . . . Construction Impeded . | . . . . . Haulers Reinforced . | . . . . . Active Scanning Responses . | . . . . . Cargo Convoy Interrupts . | . . . . . Stealth | -11 -10 -10 -9 -8 --------- Run | Yrd Mat Min Mat Mat Distress Signals 7 | . . . 2 5 Communications Jammed . | . . . . . Distress Signals . | . . . . . Times Spotted 80 | . 3 23 22 32 Peak Tracking Total 12 | . 2 12 8 11 Tactical Retreats 11 | . . 4 4 3 Traps | -11 -10 -10 -9 -8 ------- Run | Yrd Mat Min Mat Mat Traps Triggered 1 | . . . . 1 Indirectly . | . . . . . Trap Hack Attempts . | . . . . . Triggered . | . . . . . Disarmed . | . . . . . Reprogrammed . | . . . . . Reused . | . . . . . Traps Extracted . | . . . . . Installed 2 | . . 1 1 . Triggered . | . . . . . Most Traps Carried 2 | . . 2 1 . Machines | -11 -10 -10 -9 -8 ---------- Run | Yrd Mat Min Mat Mat Machines Disabled 4 | . . . 3 1 Max in Single Turn 2 | . . . 2 1 Machines Repaired . | . . . . . Machines Dismantled . | . . . . . Machines Sabotaged . | . . . . . Overloaded Fab Kills . | . . . . . Hacking | -11 -10 -10 -9 -8 --------- Run | Yrd Mat Min Mat Mat Machines Accessed 8 | . 3 . 3 2 Terminals 8 | . 3 . 3 2 Fabricators . | . . . . . Repair Stations . | . . . . . Recycling Units . | . . . . . Scanalyzers . | . . . . . Garrison Access . | . . . . . Total Hacks 20 | . 10 . 6 4 Successful 10 | . 5 . 3 2 Failed 10 | . 5 . 3 2 Catastrophic 3 | . 1 . 2 . Database Lockouts . | . . . . . Manual . | . . . . . Terminals 20 | . 10 . 6 4 Fabricators . | . . . . . Repair Stations . | . . . . . Recycling Units . | . . . . . Scanalyzers . | . . . . . Garrison Access . | . . . . . Terminal Hacks 10 | . 5 . 3 2 Level Access Points 1 | . . . 1 . Branch Access Points 1 | . 1 . . . Terminal Index 1 | . . . 1 . Unreport Threat 3 | . 1 . 1 1 Locate Traps 2 | . 2 . . . Hauler Manifests 1 | . 1 . . . Zone Layout 1 | . . . . 1 Fabricator Hacks . | . . . . . Repair Station Hacks . | . . . . . Recycling Unit Hacks . | . . . . . Scanalyzer . | . . . . . Garrison Access Hacks . | . . . . . Unauthorized Hacks . | . . . . . Terminals . | . . . . . Fabricators . | . . . . . Repair Stations . | . . . . . Recycling Units . | . . . . . Scanalyzers . | . . . . . Garrison Access . | . . . . . Data Cores Recovered . | . . . . . Used . | . . . . . Hacking Detections 5 | . 2 . 2 1 Full Trace Events 2 | . . . 1 1 Feedback Events . | . . . . . Feedback Blocked . | . . . . . Robot Schematics Acquired . | . . . . . Robots Built . | . . . . . Authchips . | . . . . . Time . | . . . . . Total Robot Build Rating . | . . . . . Part Schematics Acquired . | . . . . . Parts Built . | . . . . . Authchips . | . . . . . Time . | . . . . . Total Part Build Rating . | . . . . . Parts Repaired . | . . . . . Time . | . . . . . Parts Recycled . | . . . . . Recycled Matter . | . . . . . Retrieved Matter . | . . . . . Retrieved Components . | . . . . . Parts Scanalyzed . | . . . . . Part Schematics Acquired . | . . . . . Parts Damaged . | . . . . . Bothacking | -11 -10 -10 -9 -8 ------------ Run | Yrd Mat Min Mat Mat Used RIF Installer . | . . . . . Robots Hacked . | . . . . . Non-combat . | . . . . . Combat . | . . . . . Robot Hacks Applied . | . . . . . Relay Couplers Released . | . . . . . Fabnet Peak Effective % . | . . . . . Robots Rewired . | . . . . . Allies Hacked . | . . . . . Hacks Repelled . | . . . . . Allies | -11 -10 -10 -9 -8 -------- Run | Yrd Mat Min Mat Mat Total Allies 1 | . . 1 . . Largest Group 1 | . . 1 . . Highest-Rated Group 31 | . . 31 . . Highest-Rated Ally 31 | . . 31 . . Total Orders . | . . . . . Ally Attacks 6 | . . 6 . . Total Damage 41 | . . 41 . . Kills . | . . . . . Allies Corrupted . | . . . . . Allies Melted . | . . . . . Intel | -11 -10 -10 -9 -8 ------- Run | Yrd Mat Min Mat Mat Robot Analysis Total . | . . . . . Derelict Logs Recovered . | . . . . . Drone Launches . | . . . . . Drone Recoveries . | . . . . . Exploration | -11 -10 -10 -9 -8 ------------- Run | Yrd Mat Min Mat Mat Turns Passed 1357 | 194 217 504 186 256 Spaces Moved 1829 | 108 166 587 404 564 Core 9 | 5 . 4 . . Treads . | . . . . . Legs 428 | 103 166 159 . . Wheels . | . . . . . Hover . | . . . . . Flight 1392 | . . 424 404 564 Fastest Speed 31 | 50 120 37 34 31 Average Speed 54 | 116 120 59 34 31 Slowest Speed 120 | 120 120 120 37 34 Overloaded Moves . | . . . . . Propulsion Burnouts . | . . . . . Robots Hopped 13 | . . . 3 10 Cave-ins Triggered . | . . . . . Exploration Rate (%) 44 | 6 35 70 58 51 Regions Visited 4 Branch Regions 1 Pre-discovered Areas 1 | . . 1 . . Known Exits Taken 2 | . 1 . 1 . Unknown Exits Taken 2 | 1 . 1 . . Scrap Searched 2 | . . 2 . . Spaces Dug 4 | . . . 4 . Terrain Destroyed 258 | . . 128 28 102 Melee . | . . . . . Projectile . | . . . . . AOE 258 | . . 128 28 102 Terrain Rammed . | . . . . . Walls Destroyed . | . . . . . Machines Disabled . | . . . . . Actions | -11 -10 -10 -9 -8 --------- Run | Yrd Mat Min Mat Mat Total 2083 | 144 180 708 440 611 Wait 85 | . 4 55 3 23 Move 1801 | 107 165 586 397 546 Hop 11 | . . . 3 8 Pick Up 39 | 11 5 11 5 7 Fast Attach 16 | 2 . 10 3 1 Attach 24 | 6 . 4 5 9 Detach 4 | . . . 4 . Swap 12 | 1 2 4 3 2 Drop 20 | 1 2 9 7 1 Fire 65 | 16 2 25 9 13 Melee . | . . . . . Ram 1 | . . . . 1 Kick 3 | . . 3 . . Crush . | . . . . . Escape Stasis . | . . . . . Rewire . | . . . . . Trap 2 | . . 1 1 . Miscellaneous . | . . . . . Route ------- -11/Scrapyard -10/Materials (discovered 2 exits: *Min x2) -10/Mines (discovered 2 exits: *Mat / [*Exi]) -9/Materials (discovered 4 exits: *Mat x3 / [*Min]) -8/Materials History --------- Turn | Location | Event 4 | -11/Scrapyard | Discovered new exit (range 15) 195 | -11/Scrapyard | Entered Materials 313 | -10/Materials | Build established: Mutant 349 | -10/Materials | Discovered new exit (range 12) 352 | -10/Materials | Identified exit to Mines 412 | -10/Materials | Entered Mines 413 | -10/Mines | Learned location of Storage (-9) 423 | -10/Mines | Released all parts (7) 451 | -10/Mines | Deemed a non-threat by the Exiles lab entrance 451 | -10/Mines | Discovered new exit (range 5) 471 | -10/Mines | Discovered new exit (range 5) 491 | -10/Mines | Assembled infested the area 496 | -10/Mines | Assisted by a Guerilla fighting off Assembled 509 | -10/Mines | Found a hidden stash of uninstalled traps 634 | -10/Mines | Destroyed 9 combat bots 639 | -10/Mines | Lost 4 parts (1p2n1w) 713 | -10/Mines | Escorted by a lone wolf Derelict 721 | -10/Mines | Lost 4 parts (1n1u2w) 738 | -10/Mines | Core integrity fell below 50% 916 | -10/Mines | Entered Materials 916 | -9/Materials | Evolved 2 slots: Propulsion x1, Utility x1 982 | -9/Materials | Discovered new exit (range 16) 1093 | -9/Materials | Discovered new exit (range 15) 1100 | -9/Materials | Identified exit to Materials 1102 | -9/Materials | Entered another Materials area 1102 | -8/Materials | Evolved 2 slots: Propulsion x1, Utility x1 1358 | -8/Materials | Self-destructed Last Messages --------------- O-16 Technician sends out distress signal. O-16 Technician: "IFF HANDSHAKE FAILED. SECURING TERMINAL." O-16 Technician uses terminal to summon reinforcements. ALERT: Hostiles spotted, dispatching reinforcements to Terminal M002. O-16 Technician locks terminal. H-55 Commando destroyed. Flight Unit destroyed. Knocked back. Imp. Grenade Launcher destroyed. Y-45 Defender emerges from the garrison. Core Analyzer destroyed. Flight Unit destroyed. Destroyed Flight Unit. Flight Unit destroyed. Slammed into C-17 Slicer. Destabilizing: System corrupted (+2). Rocket Launcher destroyed. Map ----- +----------------------------------------------------+ | ???# "G [ #?? | | ######???# """% #?? | | #????????# [ #?? | | #????????# #?? | | #????????#+####+####+##### #?? | | #????????# #??# #?? | | #????????# #??# #?? | | ?#????????# #??# #?? | | ???????????# ] [ #??# ## # #?? | | ???????????# #??# ### # #?? | | ???????????##############??# #?####### #?? | | ???????????????????????????# #????##?# #?? | | ???????????????????????????# ###### ## #?? | | ???????????????????????????# ##[ # #?? | | ???????????????????????????# ## """ # #?? | | ???????????????????????????+ ## "T" + #?? | | ???????????????????????????# + # #?? | | ???????????????????????????## ## ! # #?? | | ????????????????????????????# ## ! #####?? | | ????????????????????????????# #########?????? | | ????????????????????????????# #?????????????? | | ????????????????????????????# #?????????????? | | ??????????????????########?## ##????????????? | | ??????????????????# ! ## # #????????????? | | ??????????????????#! # #????????????? | | ??????????????????# @c #????????????? | | ??????????????????# #c #????????????? | | ??????????????????# "T" # # ##????????????? | | ??????????????????# """ #?##???????????????? | | ??????????????????#######???????????????????? | | ????????????????????????????????????????????? | | | | | | | | | | | | | | | | | | | | | | | | | | | | | | | | | | | | | | | +----------------------------------------------------+ Best States ------------- Heat Dissipation 31 Energy Generation 14 Energy Capacity 250 Matter Stores 300 Matter Capacity 300 Sight Range 16 Terrain Scan Density 10 ECM Strength 1 Evasion (%) 63 Core Analysis 9 Item Schematics ----------------- None Robot Schematics ------------------ None Fabricated ------------ Nothing Alien Tech Used ----------------- None Achievements -------------- Everything Is Under Control Slippery One Use The Force Challenges ------------ None Game ------ Seed ZhirovHelicalThrower Manual? 0 Play Time 00:43:39 Cumulative 6.6 hours Start 2024.04.01 @ 23:16:58 End 2024.04.02 @ 17:05:42 Sessions 3 Manual Loads 0 Difficulty Rogue Special Mode None Game No. 9 Rogue 9 Adventurer 0 Explorer 0 Win Type - Total 0 Types 0/0/0/0/0/0/0/0/0 Lore% 8 Gallery% 12 Achievement% 14 Wizard Run 0 Options --------- Layout 1 ASCII 0 Keyboard 0 Movement Numpad Keybinds 0 Fullscreen 1 Font 48/Proggy Map View 50x35 Zoom Use 0% Tactical HUD 0 Map Filters NONE Filters NONE Steam 1 RUN: d31ca553-8a0f-420d-ad4f-d0399af70592